{"text_format":"3","workbook":"xlsx","n_sheets":2,"sheets":["НАЧАЛО","ГОДОВОЙ ТАБЕЛЬ РАБОЧЕГО ВРЕМЕНИ"],"not_rendered":{"defined_names":2},"read":"whole","date_system":"1900"}

{"sheet":"НАЧАЛО","index":0,"n_rows":8,"n_cols":2,"rows_kept":8}
[null,"ОБ ЭТОМ ШАБЛОНЕ"]
[null,"Отслеживайте свои рабочие часы за день, за неделю, за месяц и за год с помощью этого табель сотрудника."]
[null,"Введите основные сведения, например имя сотрудника, имя руководителя, адрес электронной почты и номер телефона. "]
[null,"Введите часы в таблице каждого месяца. Укажите нормативные и сверхурочные часы в отдельных столбцах для каждого дня каждой недели. "]
[null,"Общие рабочие, нормативные и сверхурочные часы рассчитываются автоматически. "]
[null,"Примечания."]
[null,"В столбце A листа ГОДОВОЙ ТАБЕЛЬ РАБОЧЕГО ВРЕМЕНИ содержатся дополнительные инструкции. Их текст намерено скрыт. Чтобы удалить этот текст, выделите столбец A и нажмите клавишу DELETE. Чтобы отобразить текст, выделите столбец A и измените цвет шрифта. "]
[null,"Чтобы получить дополнительные сведения о таблице, щелкните в ней ячейку, затем нажмите клавиши SHIFT+F10, выберите пункт «Таблица», а затем — «Замещающий текст»."]

{"sheet":"ГОДОВОЙ ТАБЕЛЬ РАБОЧЕГО ВРЕМЕНИ","index":1,"n_rows":132,"n_cols":15,"rows_kept":132,"merged":[[0,1,0,2],[0,4,0,14],[10,6,10,7],[21,6,21,7],[32,6,32,7],[33,4,33,14],[43,6,43,7],[54,6,54,7],[65,6,65,7],[66,4,66,14],[76,6,76,7],[87,6,87,7],[98,6,98,7],[99,4,99,14],[109,6,109,7],[120,6,120,7],[131,6,131,7]]}
["Создайте на этом листе табель рабочего времени сотрудника за день, неделю, месяц или год. \nПолезные инструкции о том, как использовать эту книгу, содержатся в ячейках этого столбца. Нажмите СТРЕЛКУ ВНИЗ, чтобы начать.\nНазвание этого листа содержится в ячейке справа, а заголовок для квартала «Январь, февраль, март» — в ячейке E1.","ТАБЕЛЬ \nСОТРУДНИКА",null,null,"Январь, февраль, март      Табель сотрудника (за день, неделю, месяц, год)"]
["Введите имя сотрудника в ячейку C2 и нормативные и сверхурочные часы в таблице «Январь», начиная с ячейки E2.","Имя сотрудника:",null,null,"Январь","Неделя 1","Сверхурочные","Неделя 2","Сверхурочные  ","Неделя 3","Сверхурочные   ","Неделя 4","Сверхурочные    ","Неделя 5","Сверхурочные     "]
["Введите имя руководителя в ячейке C3.","Руководитель:",null,null,"Понедельник",{"v":8,"d":"8.0"}]
["Введите адрес электронной почты в ячейке C4.","Эл. почта:",null,null,"Вторник",{"v":8,"d":"8.0"},{"v":2,"d":"2.0"}]
["Введите номер телефона в ячейке C5. Следующие инструкции указаны в ячейке A9.","Телефон:",null,null,"Среда"]
[{"$nulls":4},"Четверг"]
[{"$nulls":4},"Пятница"]
[{"$nulls":4},"Суббота"]
["Общее количество нормативных часов за год автоматически рассчитывается в ячейке C9.","Нормативные часы:",{"$f":"НормативныеЧасы","v":31},null,"Воскресенье"]
["Общее количество сверхурочных часов за год автоматически рассчитывается в ячейке C10.","Сверхурочные часы:",{"$f":"Сверхурочные_часы","v":4},null,"Итого часов за неделю",{"$f":"SUM(F3:F9)","v":{"v":16,"d":"16.0"}},{"v":2,"d":"2.0"},{"v":0,"d":"0.0"},{"v":0,"d":"0.0"},{"v":0,"d":"0.0"},{"v":0,"d":"0.0"},{"v":0,"d":"0.0"},{"v":0,"d":"0.0"},{"v":0,"d":"0.0"},{"v":0,"d":"0.0"}]
["Общее количество рабочих часов за год автоматически рассчитывается в ячейке C11. Общее количество нормативных и сверхурочных часов за январь автоматически рассчитывается в ячейках F11 и I11 соответственно. Следующие инструкции указаны в ячейке A13.","Итого",{"$f":"НормативныеЧасы+Сверхурочные_часы","v":35},null,{"$f":"TEXT(DATEVALUE(Январь[[#Headers],[Январь]]&\"  \"&YEAR(TODAY())),\"МММ.\")&\" Итого: Нормативные часы\"","v":"янв. Итого: Нормативные часы"},{"$f":"SUM(Январь[Неделя 1],Январь[Неделя 2],Январь[Неделя 3],Январь[Неделя 4],Январь[Неделя 5])","v":{"v":16,"d":"16.0"}},{"$f":"TEXT(DATEVALUE(Январь[[#Headers],[Январь]]&\"  \"&YEAR(TODAY())),\"МММ.\")&\" Итого: Сверхурочные\"","v":"янв. Итого: Сверхурочные"},null,{"$f":"SUM(Январь[Сверхурочные],Январь[[Сверхурочные  ]],Январь[[Сверхурочные   ]],Январь[[Сверхурочные    ]],Январь[[Сверхурочные     ]])","v":{"v":2,"d":"2.0"}}]
[]
["Введите нормативные и сверхурочные часы в таблице «Февраль», начиная с ячейки E13. Следующие инструкции указаны в ячейке A22.",{"$nulls":3},"Февраль","Неделя 1","Сверхурочные","Неделя 2","Сверхурочные  ","Неделя 3","Сверхурочные   ","Неделя 4","Сверхурочные    ","Неделя 5","Сверхурочные     "]
[{"$nulls":4},"Понедельник",{"v":8,"d":"8.0"}]
[{"$nulls":4},"Вторник",{"v":7,"d":"7.0"},{"v":2,"d":"2.0"}]
[{"$nulls":4},"Среда"]
[{"$nulls":4},"Четверг"]
[{"$nulls":4},"Пятница"]
[{"$nulls":4},"Суббота"]
[{"$nulls":4},"Воскресенье"]
[{"$nulls":4},"Итого часов за неделю",{"$f":"SUM(F14:F20)","v":{"v":15,"d":"15.0"}},{"v":2,"d":"2.0"},{"v":0,"d":"0.0"},{"v":0,"d":"0.0"},{"v":0,"d":"0.0"},{"v":0,"d":"0.0"},{"v":0,"d":"0.0"},{"v":0,"d":"0.0"},{"v":0,"d":"0.0"},{"v":0,"d":"0.0"}]
["Общее количество нормативных и сверхурочных часов за февраль автоматически рассчитывается в ячейках F22 и I22 соответственно. Следующие инструкции указаны в ячейке A24.",{"$nulls":3},{"$f":"TEXT(DATEVALUE(Февраль[[#Headers],[Февраль]]&\"  \"&YEAR(TODAY())),\"МММ.\")&\" Итого: Нормативные часы\"","v":"фев. Итого: Нормативные часы"},{"$f":"SUM(Февраль[Неделя 1],Февраль[Неделя 2],Февраль[Неделя 3],Февраль[Неделя 4],Февраль[Неделя 5])","v":{"v":15,"d":"15.0"}},{"$f":"TEXT(DATEVALUE(Февраль[[#Headers],[Февраль]]&\" \"&YEAR(TODAY())),\"МММ.\")&\" Итого: Сверхурочные\"","v":"фев. Итого: Сверхурочные"},null,{"$f":"SUM(Февраль[Сверхурочные],Февраль[[Сверхурочные  ]],Февраль[[Сверхурочные   ]],Февраль[[Сверхурочные    ]],Февраль[[Сверхурочные     ]])","v":{"v":2,"d":"2.0"}}]
[]
["Введите нормативные и сверхурочные часы в таблице «Март», начиная с ячейки E24. Следующие инструкции указаны в ячейке A33.",{"$nulls":3},"Март","Неделя 1","Сверхурочные","Неделя 2","Сверхурочные ","Неделя 3","Сверхурочные  ","Неделя 4","Сверхурочные    ","Неделя 5","Сверхурочные     "]
[{"$nulls":4},"Понедельник"]
[{"$nulls":4},"Вторник"]
[{"$nulls":4},"Среда"]
[{"$nulls":4},"Четверг"]
[{"$nulls":4},"Пятница"]
[{"$nulls":4},"Суббота"]
[{"$nulls":4},"Воскресенье"]
[{"$nulls":4},"Итого часов за неделю",{"$f":"SUM(F25:F31)","v":{"v":0,"d":"0.0"}},{"v":0,"d":"0.0"},{"v":0,"d":"0.0"},{"v":0,"d":"0.0"},{"v":0,"d":"0.0"},{"v":0,"d":"0.0"},{"v":0,"d":"0.0"},{"v":0,"d":"0.0"},{"v":0,"d":"0.0"},{"v":0,"d":"0.0"}]
["Общее количество нормативных и сверхурочных часов за март автоматически рассчитывается в ячейках F33 и I33 соответственно.",{"$nulls":3},{"$f":"TEXT(DATEVALUE(Март[[#Headers],[Март]]&\" \"&YEAR(TODAY())),\"МММ.\")&\" Итого: Нормативные часы\"","v":"мар. Итого: Нормативные часы"},{"$f":"SUM(Март[Неделя 1],Март[Неделя 2],Март[Неделя 3],Март[Неделя 4],Март[Неделя 5])","v":{"v":0,"d":"0.0"}},{"$f":"TEXT(DATEVALUE(Март[[#Headers],[Март]]&\" \"&YEAR(TODAY())),\"МММ.\")&\" Итого: Сверхурочные\"","v":"мар. Итого: Сверхурочные"},null,{"$f":"SUM(Март[Сверхурочные],Март[[Сверхурочные ]],Март[[Сверхурочные  ]],Март[[Сверхурочные    ]],Март[[Сверхурочные     ]])","v":{"v":0,"d":"0.0"}}]
["Заголовок для второго квартала «Апрель, май, июнь» содержится в ячейке E34. ",{"$nulls":3},"Апрель, май, июнь      Табель сотрудника (за день, неделю, месяц, год)"]
["Введите нормативные и сверхурочные часы за апрель в таблице, начиная с ячейки E35. Следующие инструкции указаны в ячейке A44.",{"$nulls":3},"Апрель","Неделя 1","Сверхурочные","Неделя 2","Сверхурочные  ","Неделя 3","Сверхурочные   ","Неделя 4","Сверхурочные    ","Неделя 5","Сверхурочные     "]
[{"$nulls":4},"Понедельник"]
[{"$nulls":4},"Вторник"]
[{"$nulls":4},"Среда"]
[{"$nulls":4},"Четверг"]
[{"$nulls":4},"Пятница"]
[{"$nulls":4},"Суббота"]
[{"$nulls":4},"Воскресенье"]
[{"$nulls":4},"Итого часов за неделю",{"$f":"SUM(F36:F42)","v":{"v":0,"d":"0.0"}},{"v":0,"d":"0.0"},{"v":0,"d":"0.0"},{"v":0,"d":"0.0"},{"v":0,"d":"0.0"},{"v":0,"d":"0.0"},{"v":0,"d":"0.0"},{"v":0,"d":"0.0"},{"v":0,"d":"0.0"},{"v":0,"d":"0.0"}]
["Общее количество нормативных и сверхурочных часов за апрель автоматически рассчитывается в ячейках F44 и I44 соответственно. Следующие инструкции указаны в ячейке A46.",{"$nulls":3},{"$f":"TEXT(DATEVALUE(Апрель[[#Headers],[Апрель]]&\" \"&YEAR(TODAY())),\"МММ.\")&\" Итого: Нормативные часы\"","v":"апр. Итого: Нормативные часы"},{"$f":"SUM(Апрель[Неделя 1],Апрель[Неделя 2],Апрель[Неделя 3],Апрель[Неделя 4],Апрель[Неделя 5])","v":{"v":0,"d":"0.0"}},{"$f":"TEXT(DATEVALUE(Апрель[[#Headers],[Апрель]]&\" \"&YEAR(TODAY())),\"МММ.\")&\" Итого: Сверхурочные\"","v":"апр. Итого: Сверхурочные"},null,{"$f":"SUM(Апрель[Сверхурочные],Апрель[[Сверхурочные  ]],Апрель[[Сверхурочные   ]],Апрель[[Сверхурочные    ]],Апрель[[Сверхурочные     ]])","v":{"v":0,"d":"0.0"}}]
[]
["Введите нормативные и сверхурочные часы за май в таблице, начиная с ячейки E46. Следующие инструкции указаны в ячейке A55.",{"$nulls":3},"Май","Неделя 1","Сверхурочные","Неделя 2","Сверхурочные  ","Неделя 3","Сверхурочные   ","Неделя 4","Сверхурочные    ","Неделя 5","Сверхурочные     "]
[{"$nulls":4},"Понедельник"]
[{"$nulls":4},"Вторник"]
[{"$nulls":4},"Среда"]
[{"$nulls":4},"Четверг"]
[{"$nulls":4},"Пятница"]
[{"$nulls":4},"Суббота"]
[{"$nulls":4},"Воскресенье"]
[{"$nulls":4},"Итого часов за неделю",{"$f":"SUM(F47:F53)","v":{"v":0,"d":"0.0"}},{"v":0,"d":"0.0"},{"v":0,"d":"0.0"},{"v":0,"d":"0.0"},{"v":0,"d":"0.0"},{"v":0,"d":"0.0"},{"v":0,"d":"0.0"},{"v":0,"d":"0.0"},{"v":0,"d":"0.0"},{"v":0,"d":"0.0"}]
["Общее количество нормативных и сверхурочных часов за май автоматически рассчитывается в ячейках F55 и I55 соответственно. Следующие инструкции указаны в ячейке A57.",{"$nulls":3},{"$f":"TEXT(DATEVALUE(Май[[#Headers],[Май]]&\" \"&YEAR(TODAY())),\"МММ.\")&\" Итого: Нормативные часы\"","v":"май. Итого: Нормативные часы"},{"$f":"SUM(Май[Неделя 1],Май[Неделя 2],Май[Неделя 3],Май[Неделя 4],Май[Неделя 5])","v":{"v":0,"d":"0.0"}},{"$f":"TEXT(DATEVALUE(Май[[#Headers],[Май]]&\" \"&YEAR(TODAY())),\"МММ.\")&\" Итого: Сверхурочные\"","v":"май. Итого: Сверхурочные"},null,{"$f":"SUM(Май[Сверхурочные],Май[[Сверхурочные  ]],Май[[Сверхурочные   ]],Май[[Сверхурочные    ]],Май[[Сверхурочные     ]])","v":{"v":0,"d":"0.0"}}]
[]
["Введите нормативные и сверхурочные часы за июнь в таблице, начиная с ячейки E57. Следующие инструкции указаны в ячейке A66.",{"$nulls":3},"Июнь","Неделя 1","Сверхурочные","Неделя 2","Сверхурочные  ","Неделя 3","Сверхурочные   ","Неделя 4","Сверхурочные    ","Неделя 5","Сверхурочные     "]
[{"$nulls":4},"Понедельник"]
[{"$nulls":4},"Вторник"]
[{"$nulls":4},"Среда"]
[{"$nulls":4},"Четверг"]
[{"$nulls":4},"Пятница"]
[{"$nulls":4},"Суббота"]
[{"$nulls":4},"Воскресенье"]
[{"$nulls":4},"Итого часов за неделю",{"$f":"SUM(F58:F64)","v":{"v":0,"d":"0.0"}},{"v":0,"d":"0.0"},{"v":0,"d":"0.0"},{"v":0,"d":"0.0"},{"v":0,"d":"0.0"},{"v":0,"d":"0.0"},{"v":0,"d":"0.0"},{"v":0,"d":"0.0"},{"v":0,"d":"0.0"},{"v":0,"d":"0.0"}]
["Общее количество нормативных и сверхурочных часов за июнь автоматически рассчитывается в ячейках F66 и I66 соответственно.",{"$nulls":3},{"$f":"TEXT(DATEVALUE(Июнь[[#Headers],[Июнь]]&\" \"&YEAR(TODAY())),\"МММ.\")&\" Итого: Нормативные часы\"","v":"июн. Итого: Нормативные часы"},{"$f":"SUM(Июнь[Неделя 1],Июнь[Неделя 2],Июнь[Неделя 3],Июнь[Неделя 4],Июнь[Неделя 5])","v":{"v":0,"d":"0.0"}},{"$f":"TEXT(DATEVALUE(Июнь[[#Headers],[Июнь]]&\" \"&YEAR(TODAY())),\"МММ.\")&\" Итого: Сверхурочные\"","v":"июн. Итого: Сверхурочные"},null,{"$f":"SUM(Июнь[Сверхурочные],Июнь[[Сверхурочные  ]],Июнь[[Сверхурочные   ]],Июнь[[Сверхурочные    ]],Июнь[[Сверхурочные     ]])","v":{"v":0,"d":"0.0"}}]
["Заголовок для третьего квартала «Июль, август, сентябрь» содержится в ячейке E67. ",{"$nulls":3},"Июль, август, сентябрь      Табель сотрудника (за день, неделю, месяц, год)"]
["Введите нормативные и сверхурочные часы за июль в таблице, начиная с ячейки E68. Следующие инструкции указаны в ячейке A77.",{"$nulls":3},"Июль","Неделя 1","Сверхурочные","Неделя 2","Сверхурочные ","Неделя 3","Сверхурочные  ","Неделя 4","Сверхурочные   ","Неделя 5","Сверхурочные     "]
[{"$nulls":4},"Понедельник"]
[{"$nulls":4},"Вторник"]
[{"$nulls":4},"Среда"]
[{"$nulls":4},"Четверг"]
[{"$nulls":4},"Пятница"]
[{"$nulls":4},"Суббота"]
[{"$nulls":4},"Воскресенье"]
[{"$nulls":4},"Итого часов за неделю",{"$f":"SUM(F69:F75)","v":{"v":0,"d":"0.0"}},{"v":0,"d":"0.0"},{"v":0,"d":"0.0"},{"v":0,"d":"0.0"},{"v":0,"d":"0.0"},{"v":0,"d":"0.0"},{"v":0,"d":"0.0"},{"v":0,"d":"0.0"},{"v":0,"d":"0.0"},{"v":0,"d":"0.0"}]
["Общее количество нормативных и сверхурочных часов за июль автоматически рассчитывается в ячейках F77 и I77 соответственно. Следующие инструкции указаны в ячейке A79.",{"$nulls":3},{"$f":"TEXT(DATEVALUE(Июль[[#Headers],[Июль]]&\" \"&YEAR(TODAY())),\"МММ.\")&\" Итого: Нормативные часы\"","v":"июл. Итого: Нормативные часы"},{"$f":"SUM(Июль[Неделя 1],Июль[Неделя 2],Июль[Неделя 3],Июль[Неделя 4],Июль[Неделя 5])","v":{"v":0,"d":"0.0"}},{"$f":"TEXT(DATEVALUE(Июль[[#Headers],[Июль]]&\" \"&YEAR(TODAY())),\"МММ.\")&\" Итого: Сверхурочные\"","v":"июл. Итого: Сверхурочные"},null,{"$f":"SUM(Июль[Сверхурочные],Июль[[Сверхурочные ]],Июль[[Сверхурочные  ]],Июль[[Сверхурочные   ]],Июль[[Сверхурочные     ]])","v":{"v":0,"d":"0.0"}}]
[]
["Введите нормативные и сверхурочные часы за август в таблице, начиная с ячейки E79. Следующие инструкции указаны в ячейке A88.",{"$nulls":3},"Август","Неделя 1","Сверхурочные","Неделя 2","Сверхурочные ","Неделя 3","Сверхурочные   ","Неделя 4","Сверхурочные  ","Неделя 5","Сверхурочные    "]
[{"$nulls":4},"Понедельник"]
[{"$nulls":4},"Вторник"]
[{"$nulls":4},"Среда"]
[{"$nulls":4},"Четверг"]
[{"$nulls":4},"Пятница"]
[{"$nulls":4},"Суббота"]
[{"$nulls":4},"Воскресенье"]
[{"$nulls":4},"Итого часов за неделю",{"$f":"SUBTOTAL(109,Август[Неделя 1])","v":{"v":0,"d":"0.0"}},{"$f":"SUBTOTAL(109,Август[Сверхурочные])","v":{"v":0,"d":"0.0"}},{"$f":"SUBTOTAL(109,Август[Неделя 2])","v":{"v":0,"d":"0.0"}},{"$f":"SUBTOTAL(109,Август[[Сверхурочные ]])","v":{"v":0,"d":"0.0"}},{"$f":"SUBTOTAL(109,Август[Неделя 3])","v":{"v":0,"d":"0.0"}},{"$f":"SUBTOTAL(109,Август[[Сверхурочные   ]])","v":{"v":0,"d":"0.0"}},{"$f":"SUBTOTAL(109,Август[Неделя 4])","v":{"v":0,"d":"0.0"}},{"$f":"SUBTOTAL(109,Август[[Сверхурочные  ]])","v":{"v":0,"d":"0.0"}},{"$f":"SUBTOTAL(109,Август[Неделя 5])","v":{"v":0,"d":"0.0"}},{"$f":"SUBTOTAL(109,Август[[Сверхурочные    ]])","v":{"v":0,"d":"0.0"}}]
["Общее количество нормативных и сверхурочных часов за август автоматически рассчитывается в ячейках F88 и I88 соответственно. Следующие инструкции указаны в ячейке A90.",{"$nulls":3},{"$f":"TEXT(DATEVALUE(Август[[#Headers],[Август]]&\" \"&YEAR(TODAY())),\"МММ.\")&\" Итого: Нормативные часы\"","v":"авг. Итого: Нормативные часы"},{"$f":"SUM(Август[Неделя 1],Август[Неделя 2],Август[Неделя 3],Август[Неделя 4],Август[Неделя 5])","v":{"v":0,"d":"0.0"}},{"$f":"TEXT(DATEVALUE(Август[[#Headers],[Август]]&\" \"&YEAR(TODAY())),\"МММ.\")&\" Итого: Сверхурочные\"","v":"авг. Итого: Сверхурочные"},null,{"$f":"SUM(Август[Сверхурочные],Август[[Сверхурочные ]],Август[[Сверхурочные   ]],Август[[Сверхурочные  ]],Август[[Сверхурочные    ]])","v":{"v":0,"d":"0.0"}}]
[]
["Введите нормативные и сверхурочные часы за сентябрь в таблице, начиная с ячейки E90. Следующие инструкции указаны в ячейке A99.",{"$nulls":3},"Сентябрь","Неделя 1","Сверхурочные","Неделя 2","Сверхурочные ","Неделя 3","Сверхурочные  ","Неделя 4","Сверхурочные   ","Неделя 5","Сверхурочные    "]
[{"$nulls":4},"Понедельник"]
[{"$nulls":4},"Вторник"]
[{"$nulls":4},"Среда"]
[{"$nulls":4},"Четверг"]
[{"$nulls":4},"Пятница"]
[{"$nulls":4},"Суббота"]
[{"$nulls":4},"Воскресенье"]
[{"$nulls":4},"Итого часов за неделю",{"$f":"SUBTOTAL(109,Сентябрь[Неделя 1])","v":{"v":0,"d":"0.0"}},{"$f":"SUBTOTAL(109,Сентябрь[Сверхурочные])","v":{"v":0,"d":"0.0"}},{"$f":"SUBTOTAL(109,Сентябрь[Неделя 2])","v":{"v":0,"d":"0.0"}},{"$f":"SUBTOTAL(109,Сентябрь[[Сверхурочные ]])","v":{"v":0,"d":"0.0"}},{"$f":"SUBTOTAL(109,Сентябрь[Неделя 3])","v":{"v":0,"d":"0.0"}},{"$f":"SUBTOTAL(109,Сентябрь[[Сверхурочные  ]])","v":{"v":0,"d":"0.0"}},{"$f":"SUBTOTAL(109,Сентябрь[Неделя 4])","v":{"v":0,"d":"0.0"}},{"$f":"SUBTOTAL(109,Сентябрь[[Сверхурочные   ]])","v":{"v":0,"d":"0.0"}},{"$f":"SUBTOTAL(109,Сентябрь[Неделя 5])","v":{"v":0,"d":"0.0"}},{"$f":"SUBTOTAL(109,Сентябрь[[Сверхурочные    ]])","v":{"v":0,"d":"0.0"}}]
["Общее количество нормативных и сверхурочных часов за сентябрь автоматически рассчитывается в ячейках F99 и I99 соответственно.",{"$nulls":3},{"$f":"TEXT(DATEVALUE(Сентябрь[[#Headers],[Сентябрь]]&\" \"&YEAR(TODAY())),\"МММ.\")&\" Итого: Нормативные часы\"","v":"сен. Итого: Нормативные часы"},{"$f":"SUM(Сентябрь[Неделя 1],Сентябрь[Неделя 2],Сентябрь[Неделя 3],Сентябрь[Неделя 4],Сентябрь[Неделя 5])","v":{"v":0,"d":"0.0"}},{"$f":"TEXT(DATEVALUE(Сентябрь[[#Headers],[Сентябрь]]&\" \"&YEAR(TODAY())),\"МММ.\")&\" Итого: Сверхурочные\"","v":"сен. Итого: Сверхурочные"},null,{"$f":"SUM(Сентябрь[Сверхурочные],Сентябрь[[Сверхурочные ]],Сентябрь[[Сверхурочные  ]],Сентябрь[[Сверхурочные   ]],Сентябрь[[Сверхурочные    ]])","v":{"v":0,"d":"0.0"}}]
["Заголовок для четвертого квартала «Октябрь, ноябрь, декабрь» содержится в ячейке E100. ",{"$nulls":3},"Октябрь, ноябрь, декабрь      Табель сотрудника (за день, неделю, месяц, год)"]
["Введите нормативные и сверхурочные часы за октябрь в таблице, начиная с ячейки E101. Следующие инструкции указаны в ячейке A110.",{"$nulls":3},"Октябрь","Неделя 1","Сверхурочные","Неделя 2","Сверхурочные ","Неделя 3","Сверхурочные  ","Неделя 4","Сверхурочные   ","Неделя 5","Сверхурочные    "]
[{"$nulls":4},"Понедельник"]
[{"$nulls":4},"Вторник"]
[{"$nulls":4},"Среда"]
[{"$nulls":4},"Четверг"]
[{"$nulls":4},"Пятница"]
[{"$nulls":4},"Суббота"]
[{"$nulls":4},"Воскресенье"]
[{"$nulls":4},"Итого часов за неделю",{"$f":"SUBTOTAL(109,Октябрь[Неделя 1])","v":{"v":0,"d":"0.0"}},{"$f":"SUBTOTAL(109,Октябрь[Сверхурочные])","v":{"v":0,"d":"0.0"}},{"$f":"SUBTOTAL(109,Октябрь[Неделя 2])","v":{"v":0,"d":"0.0"}},{"$f":"SUBTOTAL(109,Октябрь[[Сверхурочные ]])","v":{"v":0,"d":"0.0"}},{"$f":"SUBTOTAL(109,Октябрь[Неделя 3])","v":{"v":0,"d":"0.0"}},{"$f":"SUBTOTAL(109,Октябрь[[Сверхурочные  ]])","v":{"v":0,"d":"0.0"}},{"$f":"SUBTOTAL(109,Октябрь[Неделя 4])","v":{"v":0,"d":"0.0"}},{"$f":"SUBTOTAL(109,Октябрь[[Сверхурочные   ]])","v":{"v":0,"d":"0.0"}},{"$f":"SUBTOTAL(109,Октябрь[Неделя 5])","v":{"v":0,"d":"0.0"}},{"$f":"SUBTOTAL(109,Октябрь[[Сверхурочные    ]])","v":{"v":0,"d":"0.0"}}]
["Общее количество нормативных и сверхурочных часов за октябрь автоматически рассчитывается в ячейках F110 и I110 соответственно. Следующие инструкции указаны в ячейке A112.",{"$nulls":3},{"$f":"TEXT(DATEVALUE(Октябрь[[#Headers],[Октябрь]]&\" \"&YEAR(TODAY())),\"МММ.\")&\" Итого: Нормативные часы\"","v":"окт. Итого: Нормативные часы"},{"$f":"SUM(Октябрь[Неделя 1],Октябрь[Неделя 2],Октябрь[Неделя 3],Октябрь[Неделя 4],Октябрь[Неделя 5])","v":{"v":0,"d":"0.0"}},{"$f":"TEXT(DATEVALUE(Октябрь[[#Headers],[Октябрь]]&\" \"&YEAR(TODAY())),\"МММ.\")&\" Итого: Сверхурочные\"","v":"окт. Итого: Сверхурочные"},null,{"$f":"SUM(Октябрь[Сверхурочные],Октябрь[[Сверхурочные ]],Октябрь[[Сверхурочные  ]],Октябрь[[Сверхурочные   ]],Октябрь[[Сверхурочные    ]])","v":{"v":0,"d":"0.0"}}]
[]
["Введите нормативные и сверхурочные часы за ноябрь в таблице, начиная с ячейки E112. Следующие инструкции указаны в ячейке A121.",{"$nulls":3},"Ноябрь","Неделя 1","Сверхурочные","Неделя 2","Сверхурочные ","Неделя 3","Сверхурочные  ","Неделя 4","Сверхурочные    ","Неделя 5","Сверхурочные     "]
[{"$nulls":4},"Понедельник"]
[{"$nulls":4},"Вторник"]
[{"$nulls":4},"Среда"]
[{"$nulls":4},"Четверг"]
[{"$nulls":4},"Пятница"]
[{"$nulls":4},"Суббота"]
[{"$nulls":4},"Воскресенье"]
[{"$nulls":4},"Итого часов за неделю",{"$f":"SUBTOTAL(109,Ноябрь[Неделя 1])","v":{"v":0,"d":"0.0"}},{"$f":"SUBTOTAL(109,Ноябрь[Сверхурочные])","v":{"v":0,"d":"0.0"}},{"$f":"SUBTOTAL(109,Ноябрь[Неделя 2])","v":{"v":0,"d":"0.0"}},{"$f":"SUBTOTAL(109,Ноябрь[[Сверхурочные ]])","v":{"v":0,"d":"0.0"}},{"$f":"SUBTOTAL(109,Ноябрь[Неделя 3])","v":{"v":0,"d":"0.0"}},{"$f":"SUBTOTAL(109,Ноябрь[[Сверхурочные  ]])","v":{"v":0,"d":"0.0"}},{"$f":"SUBTOTAL(109,Ноябрь[Неделя 4])","v":{"v":0,"d":"0.0"}},{"$f":"SUBTOTAL(109,Ноябрь[[Сверхурочные    ]])","v":{"v":0,"d":"0.0"}},{"$f":"SUBTOTAL(109,Ноябрь[Неделя 5])","v":{"v":0,"d":"0.0"}},{"$f":"SUBTOTAL(109,Ноябрь[[Сверхурочные     ]])","v":{"v":0,"d":"0.0"}}]
["Общее количество нормативных и сверхурочных часов за ноябрь автоматически рассчитывается в ячейках F121 и I121 соответственно. Следующие инструкции указаны в ячейке A123.",{"$nulls":3},{"$f":"TEXT(DATEVALUE(Ноябрь[[#Headers],[Ноябрь]]&\" \"&YEAR(TODAY())),\"МММ.\")&\" Итого: Нормативные часы\"","v":"ноя. Итого: Нормативные часы"},{"$f":"SUM(Ноябрь[Неделя 1],Ноябрь[Неделя 2],Ноябрь[Неделя 3],Ноябрь[Неделя 4],Ноябрь[Неделя 5])","v":{"v":0,"d":"0.0"}},{"$f":"TEXT(DATEVALUE(Ноябрь[[#Headers],[Ноябрь]]&\" \"&YEAR(TODAY())),\"МММ.\")&\" Итого: Сверхурочные\"","v":"ноя. Итого: Сверхурочные"},null,{"$f":"SUM(Ноябрь[Сверхурочные],Ноябрь[[Сверхурочные ]],Ноябрь[[Сверхурочные  ]],Ноябрь[[Сверхурочные    ]],Ноябрь[[Сверхурочные     ]])","v":{"v":0,"d":"0.0"}}]
[]
["Введите нормативные и сверхурочные часы за декабрь в таблице, начиная с ячейки E123. Следующие инструкции указаны в ячейке A132.",{"$nulls":3},"Декабрь","Неделя 1","Сверхурочные","Неделя 2","Сверхурочные ","Неделя 3","Сверхурочные  ","Неделя 4","Сверхурочные   ","Неделя 5","Сверхурочные    "]
[{"$nulls":4},"Понедельник"]
[{"$nulls":4},"Вторник"]
[{"$nulls":4},"Среда"]
[{"$nulls":4},"Четверг"]
[{"$nulls":4},"Пятница"]
[{"$nulls":4},"Суббота"]
[{"$nulls":4},"Воскресенье"]
[{"$nulls":4},"Итого часов за неделю",{"$f":"SUBTOTAL(109,Декабрь[Неделя 1])","v":{"v":0,"d":"0.0"}},{"$f":"SUBTOTAL(109,Декабрь[Сверхурочные])","v":{"v":0,"d":"0.0"}},{"$f":"SUBTOTAL(109,Декабрь[Неделя 2])","v":{"v":0,"d":"0.0"}},{"$f":"SUBTOTAL(109,Декабрь[[Сверхурочные ]])","v":{"v":0,"d":"0.0"}},{"$f":"SUBTOTAL(109,Декабрь[Неделя 3])","v":{"v":0,"d":"0.0"}},{"$f":"SUBTOTAL(109,Декабрь[[Сверхурочные  ]])","v":{"v":0,"d":"0.0"}},{"$f":"SUBTOTAL(109,Декабрь[Неделя 4])","v":{"v":0,"d":"0.0"}},{"$f":"SUBTOTAL(109,Декабрь[[Сверхурочные   ]])","v":{"v":0,"d":"0.0"}},{"$f":"SUBTOTAL(109,Декабрь[Неделя 5])","v":{"v":0,"d":"0.0"}},{"$f":"SUBTOTAL(109,Декабрь[[Сверхурочные    ]])","v":{"v":0,"d":"0.0"}}]
["Общее количество нормативных и сверхурочных часов за декабрь автоматически рассчитывается в ячейках F132 и I132 соответственно.",{"$nulls":3},{"$f":"TEXT(DATEVALUE(Декабрь[[#Headers],[Декабрь]]&\" \"&YEAR(TODAY())),\"МММ.\")&\" Итого: Нормативные часы\"","v":"дек. Итого: Нормативные часы"},{"$f":"SUM(Декабрь[Неделя 1],Декабрь[Неделя 2],Декабрь[Неделя 3],Декабрь[Неделя 4],Декабрь[Неделя 5])","v":{"v":0,"d":"0.0"}},{"$f":"TEXT(DATEVALUE(Декабрь[[#Headers],[Декабрь]]&\" \"&YEAR(TODAY())),\"МММ.\")&\" Итого: Сверхурочные\"","v":"дек. Итого: Сверхурочные"},null,{"$f":"SUM(G124:G130,I124:I130,K124:K130,M124:M130,O124:O130)","v":{"v":0,"d":"0.0"}}]